Cogmind - Beta 12 @@@ ROGUE MODE // 2023.03.22 @ 20:10:51 Player: lyrabold Result: Self-destructed Performance ------------- Evolutions (2) 1000 Regions Visited (3) 600 Robots Destroyed (4) 20 Value Destroyed (75) 75 Prototype IDs (0) 0 Alien Tech Used (0) 0 Bonus (470) 470 TOTAL SCORE: 2165 Bonus ------- Pacifist 470 Cogmind --------- Core Integrity 533/550 Matter 292/300 Energy 99/100 System Corruption 1% Temperature Cool (0) Movement Core (50) Location -8/Materials Parts ------- > --- POWER (1) -------- (None) > --- PROPULSION (4) --- Light Treads Light Treads Aluminum Leg > --- UTILITY (4) ------ Melee Analysis Suite > --- WEAPON (2) ------- Mace > --- INVENTORY (5) ---- Light Treads Improved Propulsion Shielding Improved Light Armor Plating Improved Light Armor Plating Rocket Launcher Peak State ------------ > --- POWER ------------ (None) > --- PROPULSION ------- Light Treads Light Treads Aluminum Leg > --- UTILITY ---------- Melee Analysis Suite > --- WEAPON ----------- Rocket Launcher Mace > --- INVENTORY -------- Light Treads Improved Propulsion Shielding Improved Light Armor Plating Improved Light Armor Plating [Rating: 11] Favorites ----------- Power None Propulsion Light Treads Treads Light Treads Leg Aluminum Leg Utility Melee Analysis Suite Processor Melee Analysis Suite Weapon Mace Launcher Rocket Launcher Impact Weapon Mace Build | -11 -10 -9 -8 ------- Run | Jun Mat Mat Mat Slots Evolved 4 | . . 2 2 Power . | . . . . Propulsion 2 | . . 1 1 Utility 2 | . . 1 1 Weapon . | . . . . Parts Attached 7 | 2 . 3 2 Power . | . . . . Engine . | . . . . Core . | . . . . Reactor . | . . . . Propulsion 4 | 2 . 2 . Treads 3 | 2 . 1 . Leg 1 | . . 1 . Wheel . | . . . . Hover . | . . . . Flight . | . . . . Utility 1 | . . . 1 Device . | . . . . Storage . | . . . . Processor 1 | . . . 1 Hackware . | . . . . Protection . | . . . . Artifact . | . . . . Weapon 2 | . . 1 1 Energy Gun . | . . . . Energy Cannon . | . . . . Ballistic Gun . | . . . . Ballistic Cannon . | . . . . Launcher 1 | . . . 1 Special Weapon . | . . . . Impact Weapon 1 | . . 1 . Slashing Weapon . | . . . . Piercing Weapon . | . . . . Special Melee Weapon . | . . . . Unidentified Prototypes . | . . . . Parts Lost . | . . . . Power . | . . . . Propulsion . | . . . . Utility . | . . . . Weapon . | . . . . Highest Loss Streak . | . . . . To Critical Strikes . | . . . . Average Slot Usage (%) 36 | . 28 37 47 Treads 22 | . 28 22 18 Leg 7 | . . 11 9 Processor 1 | . . . 9 Impact Weapon 4 | . . 4 9 Naked Turns . | . . . . Heaviest Build 2 | . . 2 2 Greatest Support 20 | 3 3 20 3 Greatest Overweight (x) . | . . . . Average Overweight (x) . | . . . . Largest Inventory Capacity 5 | 5 5 5 5 Average Capacity 5 | 5 5 5 5 Most Carried 5 | 1 4 5 5 Average Carried 3 | . 1 4 4 Final Capacity 5 | 5 5 5 5 Final Carried 5 | 1 4 5 5 Class Distribution -------------------- 100% | Mutant Dominant Class ---------------- Mutant | -10/Materials Mutant | -9/Materials Mutant | -8/Materials Resources | -11 -10 -9 -8 ----------- Run | Jun Mat Mat Mat Matter Collected 310 | 190 . . 120 Remotely . | . . . . Salvage Created 44 | . . . 44 Parts 6 | . . . 6 Haulers Intercepted . | . . . . Recyclers Shooed . | . . . . Parts Field Recycled . | . . . . Retrieved Matter . | . . . . Parts Self-Destructed . | . . . . Prevented . | . . . . Kills | -11 -10 -9 -8 ------- Run | Jun Mat Mat Mat Combat Hostiles Destroyed 4 | . . . 4 AOE 4 | . . . 4 Classes Destroyed 2 | . . . 2 Swarmer 3 | . . . 3 Sentry 1 | . . . 1 Best Kill Streak 4 | . . . 4 Combat Bots Only 4 | . . . 4 Max Kills in Single Turn 2 | . . . 2 Gunslinging . | . . . . Exploded 2 | . . . 2 Melee . | . . . . Uniques/NPCs Destroyed . | . . . . Combat | -11 -10 -9 -8 -------- Run | Jun Mat Mat Mat Damage Taken 445 | . 144 229 72 Core 88 | . 31 40 17 Absorbed by Shields . | . . . . Core Remaining (%) 92 | 100 87 90 . Volleys Fired 4 | . . . 4 Largest 1 | . . . 1 Hottest 33 | . . . 33 Shots Fired 4 | . . . 4 Gun . | . . . . Cannon . | . . . . Launcher 4 | . . . 4 Special . | . . . . Kinetic . | . . . . Thermal . | . . . . Explosive 4 | . . . 4 Electromagnetic . | . . . . Robot Hit Streak 3 | . . . 3 Robot Miss Streak . | . . . . Penetration Max . | . . . . Secondary Targets . | . . . . Shots Hit Robots 3 | . . . 3 Core Hits 6 | . . . 6 Critical Kills . | . . . . Critical Parts Destroyed . | . . . . Critical Strikes . | . . . . Melee Attacks . | . . . . Impact . | . . . . Slashing . | . . . . Piercing . | . . . . Sneak Attacks . | . . . . Combat Hostiles . | . . . . Follow-up Attacks . | . . . . Damage Inflicted 225 | . . 9 216 Guns . | . . . . Cannons . | . . . . Explosions 216 | . . . 216 Melee . | . . . . Ramming 9 | . . 9 . Kinetic . | . . . . Thermal . | . . . . Explosive 216 | . . . 216 Electromagnetic . | . . . . Impact . | . . . . Slashing . | . . . . Piercing . | . . . . Highest Corruption 1 | . . . 1 Average Corruption 1 | . . . 1 Corruption Purged . | . . . . Corruption Blocked . | . . . . Effects 1 | . . . 1 Matter Fused 1 | . . . 1 Overload Shots . | . . . . Overflow Damage . | . . . . Projectiles . | . . . . Explosions . | . . . . Melee . | . . . . Knockbacks . | . . . . Impact . | . . . . Kinetic . | . . . . Secondary . | . . . . Self-Inflicted Damage 4 | . . 4 . Shots . | . . . . Rammed 1 | . . 1 . Targets Rammed 1 | . . 1 . Kicked . | . . . . Crushed . | . . . . Highest Temperature 1 | . . . 1 Average Temperature 1 | . . . 1 Received Heat Transfer 135 | . 24 93 18 Siege Activations . | . . . . Robots Corrupted . | . . . . Combat Hostiles . | . . . . Parts Fried . | . . . . Impact Corruptions . | . . . . Robots Melted . | . . . . Combat Hostiles . | . . . . Parts Melted . | . . . . Heat Transferred . | . . . . Parts Sabotaged . | . . . . Parts Stolen . | . . . . Parts Stripped . | . . . . Power Chain Reactions . | . . . . Missiles Intercepted . | . . . . Alert | -11 -10 -9 -8 ------- Run | Jun Mat Mat Mat Peak Influence 192 | . 23 125 192 Initial 52 | . . 9 52 Average 40 | . 7 44 91 Maximum Alert Level . | . . . . Low Security (%) 100 | 100 100 100 100 Level 1 . | . . . . Level 2 . | . . . . Level 3 . | . . . . Level 4 . | . . . . Level 5 . | . . . . High Security . | . . . . Max Security . | . . . . Squads Dispatched 3 | . 1 1 1 Investigation 2 | . 1 . 1 Extermination . | . . . . Reinforcement 1 | . . 1 . Assault . | . . . . Garrison . | . . . . Intercept . | . . . . Searches Triggered . | . . . . Construction Impeded . | . . . . Haulers Reinforced . | . . . . Active Scanning Responses . | . . . . Cargo Convoy Interrupts . | . . . . Stealth | -11 -10 -9 -8 --------- Run | Jun Mat Mat Mat Distress Signals 2 | . 1 1 . Communications Jammed . | . . . . Distress Signals . | . . . . Times Spotted 28 | . 11 12 5 Peak Tracking Total 12 | . 11 12 5 Tactical Retreats 1 | . . 1 . Traps | -11 -10 -9 -8 ------- Run | Jun Mat Mat Mat Traps Triggered 1 | . 1 . . Indirectly . | . . . . Trap Hack Attempts . | . . . . Triggered . | . . . . Disarmed . | . . . . Reprogrammed . | . . . . Reused . | . . . . Traps Extracted . | . . . . Installed . | . . . . Triggered . | . . . . Machines | -11 -10 -9 -8 ---------- Run | Jun Mat Mat Mat Machines Disabled . | . . . . Max in Single Turn . | . . . . Machines Repaired . | . . . . Machines Sabotaged . | . . . . Overloaded Fab Kills . | . . . . Hacking | -11 -10 -9 -8 --------- Run | Jun Mat Mat Mat Machines Accessed 6 | . 3 1 2 Terminals 6 | . 3 1 2 Fabricators . | . . . . Repair Stations . | . . . . Recycling Units . | . . . . Scanalyzers . | . . . . Garrison Access . | . . . . Total Hacks 26 | . 13 4 9 Successful 9 | . 4 2 3 Failed 17 | . 9 2 6 Catastrophic 1 | . . . 1 Database Lockouts . | . . . . Manual 15 | . 5 4 6 Terminals 26 | . 13 4 9 Fabricators . | . . . . Repair Stations . | . . . . Recycling Units . | . . . . Scanalyzers . | . . . . Garrison Access . | . . . . Terminal Hacks 6 | . 3 1 2 Dispatch Records 1 | . 1 . . Transport Status 1 | . . . 1 Zone Layout 4 | . 2 1 1 Fabricator Hacks . | . . . . Repair Station Hacks . | . . . . Recycling Unit Hacks . | . . . . Scanalyzer . | . . . . Garrison Access Hacks . | . . . . Unauthorized Hacks 3 | . 1 1 1 Terminals 3 | . 1 1 1 Botnet 3 | . 1 1 1 Fabricators . | . . . . Repair Stations . | . . . . Recycling Units . | . . . . Scanalyzers . | . . . . Garrison Access . | . . . . Data Cores Recovered . | . . . . Used . | . . . . Hacking Detections 6 | . 3 1 2 Full Trace Events 3 | . 2 . 1 Feedback Events 1 | . . . 1 Corruption 1 | . . . 1 Feedback Blocked . | . . . . Robot Schematics Acquired . | . . . . Robots Built . | . . . . Authchips . | . . . . Time . | . . . . Total Robot Build Rating . | . . . . Part Schematics Acquired . | . . . . Parts Built . | . . . . Authchips . | . . . . Time . | . . . . Total Part Build Rating . | . . . . Parts Repaired . | . . . . Time . | . . . . Parts Recycled . | . . . . Recycled Matter . | . . . . Retrieved Matter . | . . . . Retrieved Components . | . . . . Parts Scanalyzed . | . . . . Part Schematics Acquired . | . . . . Parts Damaged . | . . . . Bothacking | -11 -10 -9 -8 ------------ Run | Jun Mat Mat Mat Used RIF Installer . | . . . . Robots Hacked . | . . . . Non-combat . | . . . . Combat . | . . . . Robot Hacks Applied . | . . . . Relay Couplers Released . | . . . . Fabnet Peak Effective % . | . . . . Robots Rewired . | . . . . Allies Hacked . | . . . . Hacks Repelled . | . . . . Allies | -11 -10 -9 -8 -------- Run | Jun Mat Mat Mat Total Allies . | . . . . Largest Group . | . . . . Highest-Rated Group . | . . . . Highest-Rated Ally . | . . . . Total Orders . | . . . . Ally Attacks . | . . . . Total Damage . | . . . . Kills . | . . . . Allies Corrupted . | . . . . Allies Melted . | . . . . Intel | -11 -10 -9 -8 ------- Run | Jun Mat Mat Mat Robot Analysis Total . | . . . . Derelict Logs Recovered . | . . . . Drone Launches . | . . . . Drone Recoveries . | . . . . Exploration | -11 -10 -9 -8 ------------- Run | Jun Mat Mat Mat Turns Passed 213 | 18 50 104 41 Spaces Moved 350 | 29 93 169 59 Core 340 | 29 93 159 59 Treads 6 | . . 6 . Legs 4 | . . 4 . Wheels . | . . . . Hover . | . . . . Flight . | . . . . Fastest Speed 50 | 50 50 50 50 Average Speed 52 | 50 50 55 50 Slowest Speed 160 | 50 50 160 50 Overloaded Moves . | . . . . Propulsion Burnouts . | . . . . Robots Hopped . | . . . . Cave-ins Triggered . | . . . . Exploration Rate (%) 20 | 3 39 23 15 Regions Visited 3 Branch Regions . Pre-discovered Areas . | . . . . Known Exits Taken . | . . . . Unknown Exits Taken 3 | 1 1 1 . Scrap Searched . | . . . . Spaces Dug 6 | . . . 6 Terrain Destroyed 10 | . . . 10 Melee . | . . . . Projectile . | . . . . AOE 10 | . . . 10 Terrain Rammed . | . . . . Walls Destroyed . | . . . . Machines Disabled . | . . . . Actions | -11 -10 -9 -8 --------- Run | Jun Mat Mat Mat Total 371 | 31 95 179 66 Wait . | . . . . Move 347 | 28 92 168 59 Hop . | . . . . Pick Up 8 | 1 3 4 . Fast Attach 4 | 2 . 1 1 Attach 3 | . . 2 1 Detach 2 | . . 1 1 Swap . | . . . . Drop 2 | . . 2 . Fire 4 | . . . 4 Melee . | . . . . Ram 1 | . . 1 . Kick . | . . . . Crush . | . . . . Escape Stasis . | . . . . Rewire . | . . . . Trap . | . . . . Miscellaneous . | . . . . Route ------- -11/Junkyard -10/Materials -9/Materials -8/Materials History --------- Turn | Location | Event 8 | -11/Junkyard | Discovered new exit (range 15) 19 | -11/Junkyard | Entered Materials 62 | -10/Materials | Discovered new exit (range 14) 69 | -10/Materials | Entered another Materials area 69 | -9/Materials | Evolved 2 slots: Propulsion x1, Utility x1 166 | -9/Materials | Discovered new exit (range 14) 173 | -9/Materials | Entered another Materials area 173 | -8/Materials | Evolved 2 slots: Propulsion x1, Utility x1 214 | -8/Materials | Self-destructed Last Messages --------------- Terminal linked with 0 systems. Awaiting botnet instructions. 00202_ Slug penetrates Wall. 00202_ Acquired 66 matter. 00204_ Acquired 10 matter. 00204_ S-10 Pest destroyed. 00205_ Acquired 11 matter. 00205_ Y-45 Defender destroyed. 00206_ Acquired 11 matter. 00207_ U-05 Engineer lays Concrete. 00208_ Acquired 11 matter. 00208_ U-05 Engineer lays Concrete. 00209_ S-10 Pest destroyed. 00210_ Acquired 11 matter. 00210_ U-05 Engineer lays Concrete. 00210_ Slug penetrates U-05 Engineer. 00212_ U-05 Engineer lays Concrete. 00213_ System corrupted: Matter fused (-8). 00213_ U-05 Engineer lays Concrete. 00214_ Connecting with Recycling Unit... Map ----- +----------------------------------------------------+ | # #?????????????????????????????? | | # """ """ """ #?######??????????????????????? | | # """ """ """ # #??????????????????????? | | # """ """ """ # ! #??????????????????????? | | ## / #??????????????????????? | | ?# # """ ???????????????????????? | | ?# # ""??????????????????????????? | | ?# * #?""??????????????????????????? | | ?######## #####+#####??????????????????????????? | | ????????# ## #??????????????????????????? | | ????????# ## #??????????????????????????? | | ????????# ## #??????????????????????????? | | ????????# ## ######?????????????????????? | | ????????# ?# + #?????????????????????? | | ????????# ?# # #??????????" #????????? | | ???????? ??# # #?????????"" #????????? | | ???????? ???# # #???????? #????????? | | ????????? ???# # ####???? #????????? | | ???????????? ########## u +??? % =?????????? | | ???????????? ] #??# ###????????? | | ????????????# ### [ #????????? | | ????????????? [[ ##+#?????? | | ????????????? [u !! = r * ????? | | ?????????????####### [! ! = ????? | | ???????????????????#/ % u ! ????? | | ???????????????????# @ ##?????? | | ???????????????????####"Y"## #### #??????? | | ??????????????????????#"""## #???## ##??????? | | ??????????????????????######+#????? # ?????? | | ???????????????????????????????????? / ? ??????? | | ????????????????????????????????????? # =???????? | | ??????????????????????????????????????#? ???????? | | ?????????????????????????????????????????????????? | | ?????????????????????????????????????????????????? | | ?????????????????????????????????????????????????? | | ?????????????????????????????????????????????????? | | ?????????????????????????????????????????????????? | | ?????????????????????????????????????????????????? | | ?????????????????????????????????????????????????? | | ?????????????????????????????????????????????????? | | ?????????????????????????????????????????????????? | | ?????????????????????????????????????????????????? | | ?????????????????????????????????????????????????? | | ?????????????????????????????????????????????????? | | ?????????????????????????????????????????????????? | | ?????????????????????????????????????????????????? | | ?????????????????????????????????????????????????? | | ?????????????????????????????????????????????????? | | ?????????????????????????????????????????????????? | | ?????????????????????????????????????????????????? | +----------------------------------------------------+ Best States ------------- Heat Dissipation 31 Energy Generation 5 Energy Capacity 100 Matter Stores 289 Matter Capacity 300 Sight Range 16 Terrain Scan Density 10 Evasion (%) 50 Melee Accuracy 5 Recoil Reduction 1 Item Schematics ----------------- None Robot Schematics ------------------ None Fabricated ------------ Nothing Alien Tech Used ----------------- None Achievements -------------- None Challenges ------------ None Game ------ Seed UltimateVortexTearclaws Manual? 0 Play Time 00:07:27 Cumulative 230.0 hours Start 2023.03.22 @ 20:05:01 End 2023.03.22 @ 20:10:51 Sessions 1 Manual Loads 0 Difficulty Rogue Special Mode None Game No. 124 Rogue 124 Adventurer 0 Explorer 0 Win Type - Total 10 Types 6/0/1/2/0/0/1/0/0 Lore% 76 Gallery% 80 Achievement% 73 Wizard Run 0 Options --------- ASCII 0 Keyboard 1 Movement Arrows Keybinds 0 Fullscreen 2 Font 18/X11 Map View 76x50 Tactical HUD 1 Map Filters NONE Filters NONE Steam 1 RUN: ec1799fd-9ecc-489c-9a1a-56997f5f58d5